fUSD/lending_fUSD_20240620
["ID","MTS","AMOUNT","RATE_DAILY","PERIOD"]
[329974176,1718886647518,-568.53,0.0001417,2]
[329974177,1718886647527,-1220.0,0.0001417,2]
[329974178,1718886647536,-500.0,0.0001417,2]
[329974179,1718886647546,-4713.65,0.0001417,2]
[329974180,1718886647556,-500.0,0.0001417,2]
[329974181,1718886647566,-1672.98,0.0001417,2]
[329974182,1718886647576,-500.0,0.0001417,2]
[329974183,1718886647585,-2020.61,0.0001417,2]
[329974184,1718886647594,-750.2,0.00014171,2]
[329974185,1718886647606,-500.0,0.00014171,2]
[329974186,1718886647615,-571.14301788,0.00014171,2]
[329974187,1718886647624,-500.0,0.00014171,2]
[329974188,1718886647634,-1266.15,0.00014171,2]
[329974189,1718886647643,-500.0,0.00014171,2]
[329974190,1718886647653,-500.0,0.00014171,2]
[329974191,1718886647662,-500.0,0.00014171,2]
[329974192,1718886647671,-500.0,0.00014171,2]
[329974193,1718886647681,-500.0,0.00014171,2]
[329974194,1718886647690,-500.0,0.00014171,2]
[329974195,1718886647699,-500.0,0.00014171,2]
[329974196,1718886647708,-500.0,0.00014171,2]
[329974197,1718886647718,-500.0,0.00014171,2]
[329974198,1718886647727,-500.0,0.00014171,2]
[329974199,1718886647737,-500.0,0.00014171,2]
[329974200,1718886647747,-500.0,0.00014171,2]
[329974201,1718886647758,-500.0,0.00014171,2]
[329974202,1718886647768,-500.0,0.00014171,2]
[329974203,1718886647777,-500.0,0.00014171,2]
[329974204,1718886647787,-500.0,0.00014171,2]
[329974205,1718886647796,-500.0,0.00014171,2]
[329974206,1718886647805,-500.0,0.00014171,2]
[329974207,1718886647814,-500.0,0.00014171,2]
[329974208,1718886647824,-150.0,0.00014171,2]
[329974209,1718886647833,-500.0,0.00014171,2]
[329974210,1718886647843,-500.0,0.00014171,2]
[329974211,1718886647856,-500.0,0.00014171,2]
[329974212,1718886647865,-500.0,0.00014171,2]
[329974213,1718886647874,-500.0,0.00014171,2]
[329974214,1718886647883,-500.0,0.00014171,2]
[329974215,1718886647892,-500.0,0.00014171,2]
[329974216,1718886647901,-500.0,0.00014171,2]
[329974217,1718886647912,-500.0,0.00014171,2]
[329974218,1718886647923,-500.0,0.00014171,2]
[329974219,1718886647932,-500.0,0.00014171,2]
[329974220,1718886647943,-781.63,0.00014171,2]
[329974221,1718886647953,-545.91462866,0.00014171,2]
[329974222,1718886647963,-500.0,0.00014171,2]
[329974223,1718886647972,-505.93,0.00014171,2]
[329974224,1718886647982,-500.0,0.00014171,2]
[329974225,1718886647992,-650.98,0.00014171,2]
[329974226,1718886648002,-500.0,0.00014171,2]
[329974227,1718886648011,-591.34,0.00014171,2]
[329974228,1718886648023,-537.98,0.00014171,2]
[329974229,1718886648034,-514.96,0.00014171,2]
[329974230,1718886648044,-500.0,0.00014171,2]
[329974231,1718886648054,-500.0,0.00014171,2]
[329974232,1718886648064,-500.0,0.00014171,2]
[329974233,1718886648074,-500.0,0.00014171,2]
[329974234,1718886648084,-500.0,0.00014171,2]
[329974235,1718886648093,-574.86,0.00014171,2]
[329974236,1718886648108,-500.0,0.00014171,2]
[329974237,1718886648118,-500.0,0.00014171,2]
[329974238,1718886648126,-500.0,0.00014171,2]
[329974239,1718886648135,-500.0,0.00014171,2]
[329974240,1718886648144,-564.71,0.00014171,2]
[329974241,1718886648153,-609.27,0.00014171,2]
[329974242,1718886648163,-5204.48,0.00014171,2]
[329974243,1718886648172,-500.0,0.00014171,2]
[329974244,1718886648182,-542.76,0.00014171,2]
[329974245,1718886648191,-15841.39,0.00014171,2]
[329974246,1718886648200,-456.63644994,0.00014171,2]
[329974247,1718886648210,-500.0,0.00014171,2]
[329974248,1718886648219,-500.0,0.00014171,2]
[329974249,1718886648229,-500.0,0.00014171,2]
[329974250,1718886648238,-500.0,0.00014171,2]
[329974251,1718886648247,-500.0,0.00014171,2]
[329974252,1718886648257,-1221.12,0.00014171,2]
[329974253,1718886648266,-500.0,0.00014171,2]
[329974254,1718886648275,-500.0,0.00014171,2]
[329974255,1718886648285,-982.55,0.00014171,2]
[329974256,1718886648295,-4728.41,0.00014171,2]
[329974257,1718886648304,-500.0,0.00014171,2]
[329974258,1718886648314,-500.0,0.00014171,2]
[329974259,1718886648323,-500.0,0.00014171,2]
[329974260,1718886648333,-1943.02,0.00014171,2]
[329974261,1718886648341,-395.91879433,0.00014171,2]
[329974262,1718886648351,-500.0,0.00014171,2]
[329974263,1718886648365,-500.0,0.00014171,2]
[329974264,1718886648374,-1817.72,0.00014171,2]
[329974265,1718886648384,-918.3,0.00014171,2]
[329974266,1718886648393,-407.79595189,0.00014171,2]
[329974267,1718886648403,-808.56,0.00014171,2]
[329974268,1718886648412,-500.0,0.00014171,2]
[329974269,1718886648421,-500.0,0.00014171,2]
[329974270,1718886648430,-500.0,0.00014171,2]
[329974271,1718886648439,-2473.6,0.00014171,2]
[329974272,1718886648449,-1450.35,0.00014171,2]
[329974273,1718886648459,-500.0,0.00014171,2]
[329974274,1718886648468,-500.0,0.00014171,2]
[329974275,1718886648477,-1746.46,0.00014171,2]
[329974276,1718886648487,-500.0,0.00014171,2]
[329974277,1718886648497,-2222.84,0.00014171,2]
[329974278,1718886648506,-3410.12,0.00014171,2]
[329974279,1718886648515,-500.0,0.00014171,2]
[329974280,1718886648525,-790.49,0.00014171,2]
[329974281,1718886648535,-1340.4,0.00014171,2]
[329974282,1718886648545,-578.47,0.00014171,2]
[329974283,1718886648554,-500.0,0.00014171,2]
[329974284,1718886648563,-1214.53,0.00014171,2]
[329974285,1718886648573,-874.87,0.00014171,2]
[329974286,1718886648582,-1450.47,0.00014171,2]
[329974287,1718886648591,-500.0,0.00014171,2]
[329974288,1718886648600,-500.0,0.00014171,2]
[329974289,1718886648613,-500.0,0.00014171,2]
[329974290,1718886648622,-500.0,0.00014171,2]
[329974291,1718886648630,-500.0,0.00014171,2]
[329974292,1718886648639,-485.82840666,0.00014171,2]
[329974293,1718886648647,-1469.92,0.00014171,2]
[329974294,1718886648656,-978.76,0.00014171,2]
[329974295,1718886648665,-500.0,0.00014171,2]
[329974296,1718886648674,-1232.27,0.00014171,2]
[329974297,1718886648683,-500.0,0.00014171,2]
[329974298,1718886648693,-500.0,0.00014171,2]
[329974299,1718886648702,-2128.12,0.00014171,2]
[329974300,1718886648711,-1729.68,0.00014171,2]
[329974301,1718886648720,-500.0,0.00014171,2]
[329974302,1718886648729,-500.0,0.00014171,2]
[329974303,1718886648739,-500.0,0.00014171,2]
[329974304,1718886648747,-2981.47,0.00014171,2]
[329974305,1718886648756,-1304.88,0.00014171,2]
[329974306,1718886648765,-500.0,0.00014171,2]
[329974307,1718886648774,-1263.17,0.00014171,2]
[329974308,1718886648784,-839.04,0.00014171,2]
[329974309,1718886648794,-772.8,0.00014172,2]
[329974310,1718886648803,-774.02,0.00014172,2]
[329974311,1718886648817,-736.62,0.00014172,2]
[329974312,1718886648826,-1004.45,0.00014172,2]
[329974313,1718886648836,-910.9,0.00014172,2]
[329974314,1718886648846,-1497.6,0.00014172,2]
[329974315,1718886648856,-7591.76,0.00014172,2]
[329974316,1718886648865,-533.98,0.00014172,2]
[329974317,1718886648874,-10359.81,0.00014172,2]
[329974318,1718886648883,-749.92,0.00014172,2]
[329974319,1718886648893,-693.63,0.00014172,2]
[329974320,1718886648902,-500.0,0.00014172,2]
[329974321,1718886648911,-15297.43971402,0.00014173,2]
[329974322,1718886648921,-834.23,0.00014192,2]
[329974323,1718886648930,-500.0,0.00014241,2]
[329974324,1718886648942,-500.0,0.00014241,2]
[329974325,1718886648951,-556.74743279,0.00014241,2]
[329974326,1718886648961,-500.0,0.00014241,2]
[329974327,1718886648970,-350.68973071,0.00014241,2]
[329974328,1718886648980,-500.0,0.00014241,2]
[329974329,1718886648990,-500.0,0.00014241,2]
[329974330,1718886648999,-500.0,0.00014241,2]
[329974331,1718886649008,-241.053209,0.00014241,2]
[329974332,1718886649018,-241.053209,0.00014241,2]
[329974333,1718886649027,-270.880901,0.00014241,2]
[329974334,1718886649038,-151.0,0.00014241,2]
[329974335,1718886649049,-1825.589488,0.00014241,2]
[329974336,1718886649058,-1959.03,0.00014241,2]
[329974337,1718886649067,-1825.589488,0.00014241,2]
[329974338,1718886649076,-4515.12,0.00014241,2]
[329974339,1718886649087,-725.08,0.00014241,2]
[329974340,1718886649096,-1083.71,0.00014241,2]
[329974341,1718886649108,-4412.5,0.00014241,2]
[329974342,1718886649118,-1037.43,0.00014241,2]
[329974343,1718886649127,-772.66,0.00014241,2]
[329974344,1718886649137,-942.01,0.00014241,2]
[329974345,1718886649146,-500.0,0.00014241,2]
[329974346,1718886649155,-352.661351,0.00014241,2]
[329974347,1718886649164,-352.661351,0.00014241,2]
[329974348,1718886649173,-882.82,0.00014241,2]
[329974349,1718886649183,-193.018736,0.00014241,2]
[329974350,1718886649193,-1632.12,0.00014241,2]
[329974351,1718886649202,-2296.73,0.00014241,2]
[329974352,1718886649211,-263.458515,0.00014241,2]
[329974353,1718886649220,-1059.54,0.00014241,2]
[329974354,1718886649230,-1792.52,0.00014241,2]
[329974355,1718886649239,-877.652126,0.00014241,2]
[329974356,1718886649247,-173.429652,0.00014241,2]
[329974357,1718886649257,-877.652126,0.00014241,2]
[329974358,1718886649266,-2594.9,0.00014241,2]
[329974359,1718886649275,-7206.65,0.00014241,2]
[329974360,1718886649285,-151.0,0.00014241,2]
[329974361,1718886649294,-151.0,0.00014241,2]
[329974362,1718886649304,-1971.67,0.00014241,2]
[329974363,1718886649314,-511.01,0.00014241,2]
[329974364,1718886649323,-500.0,0.00014241,2]
[329974365,1718886649332,-643.56,0.00014241,2]
[329974366,1718886649341,-523.08,0.00014241,2]
[329974367,1718886649351,-151.0,0.00014241,2]
[329974368,1718886649365,-500.0,0.00014241,2]
[329974369,1718886649374,-151.0,0.00014241,2]
[329974370,1718886649383,-2176.94,0.00014241,2]
[329974371,1718886649393,-2030.39,0.00014241,2]
[329974372,1718886649402,-151.0,0.00014241,2]
[329974373,1718886649411,-151.0,0.00014241,2]
[329974374,1718886649421,-241.429869,0.00014241,2]
[329974375,1718886649430,-151.0,0.00014241,2]
[329974376,1718886649439,-1338.27,0.00014241,2]
[329974377,1718886649448,-151.0,0.00014241,2]
[329974378,1718886649458,-560.55,0.00014241,2]
[329974379,1718886649467,-513.97752878,0.00014242,2]
[329974380,1718886649476,-500.0,0.00014242,2]
[329974381,1718886649486,-500.0,0.00014242,2]
[329974382,1718886649496,-500.0,0.00014242,2]
[329974383,1718886649506,-408.02098355,0.00014242,2]
[329974384,1718886649516,-500.0,0.00014242,2]
[329974385,1718886649525,-151.0,0.00014242,2]
[329974386,1718886649534,-151.0,0.00014242,2]
[329974387,1718886649544,-151.0,0.00014242,2]
[329974388,1718886649553,-500.0,0.00014246,2]
[329974389,1718886649563,-944.19,0.00014246,2]
[329974390,1718886649573,-500.0,0.00014246,2]
[329974391,1718886649582,-500.0,0.00014246,2]
[329974392,1718886649591,-189.254727,0.00014246,2]
[329974393,1718886649601,-189.254727,0.00014246,2]
[329974394,1718886649612,-151.0,0.00014246,2]
[329974395,1718886649620,-151.0,0.00014246,2]
[329974396,1718886649630,-151.0,0.00014246,2]
[329974397,1718886649639,-190.09572,0.00014246,2]
[329974398,1718886649648,-151.0,0.00014246,2]
[329974399,1718886649657,-15297.43971402,0.00014264,2]
[329974400,1718886649666,-2095.93104623,0.0001427,2]
[329974401,1718886649676,-311.948419,0.00014321,2]
[329974402,1718886649685,-264.768903,0.00014321,2]
[329974403,1718886649695,-182.85,0.00014335,2]
[329974404,1718886649704,-15297.43971402,0.00014355,2]
[329974405,1718886649713,-500.0,0.00014355,2]
[329974406,1718886649722,-311.53,0.00014384,2]
[329974407,1718886649731,-15141.76613817,0.0001439,2]
[329974408,1718886649740,-164.03044293,0.000144,2]
[329974409,1718886649749,-3575.93973588,0.000144,2]
[329974410,1718886649758,-927.02122377,0.000144,2]
[329974411,1718886649768,-283.24,0.00014402,2]
[329974412,1718886649777,-328.24042272,0.00014405,2]
[329974413,1718886649786,-2095.93104623,0.00014427,2]
[329974414,1718886649795,-500.0,0.00014434,2]
[329974415,1718886649805,-500.0,0.00014434,2]
[329974416,1718886649813,-500.0,0.00014434,2]
[329974417,1718886649822,-500.0,0.00014434,2]
[329974418,1718886649831,-500.0,0.00014434,2]
[329974419,1718886649841,-500.0,0.00014434,2]
[329974420,1718886649850,-500.0,0.00014434,2]
[329974421,1718886649868,-500.0,0.00014434,2]
[329974422,1718886649877,-500.0,0.00014434,2]
[329974423,1718886649886,-500.0,0.00014434,2]
[329974424,1718886649895,-500.0,0.00014434,2]
[329974425,1718886649904,-500.0,0.00014434,2]
[329974426,1718886649913,-995.0,0.00014434,2]
[329974427,1718886649922,-537.42419722,0.00014434,2]
[329974428,1718886649931,-500.0,0.00014434,2]
[329974429,1718886649940,-500.0,0.00014434,2]
[329974430,1718886649949,-500.0,0.00014434,2]
[329974431,1718886649958,-500.0,0.00014434,2]
[329974432,1718886649967,-560.73722608,0.00014434,2]
[329974433,1718886649976,-500.0,0.00014434,2]
[329974434,1718886649986,-500.0,0.00014434,2]
[329974435,1718886649995,-500.0,0.00014434,2]
[329974436,1718886650006,-500.0,0.00014434,2]
[329974437,1718886650016,-500.0,0.00014434,2]
[329974438,1718886650030,-506.79,0.00014434,2]
[329974439,1718886650040,-500.0,0.00014434,2]
[329974440,1718886650049,-500.0,0.00014434,2]
[329974441,1718886650059,-500.0,0.00014434,2]
[329974442,1718886650069,-500.0,0.00014434,2]
[329974443,1718886650079,-500.0,0.00014434,2]
[329974444,1718886650088,-500.0,0.00014434,2]
[329974445,1718886650098,-500.0,0.00014434,2]
[329974446,1718886650111,-500.0,0.00014434,2]
[329974447,1718886650120,-500.0,0.00014434,2]
[329974448,1718886650129,-500.0,0.00014434,2]
[329974449,1718886650138,-500.0,0.00014434,2]
[329974450,1718886650146,-500.0,0.00014434,2]
[329974451,1718886650155,-500.0,0.00014434,2]
[329974452,1718886650164,-500.0,0.00014434,2]
[329974453,1718886650173,-500.0,0.00014434,2]
[329974454,1718886650183,-500.0,0.00014434,2]
[329974455,1718886650192,-500.0,0.00014434,2]
[329974456,1718886650202,-500.0,0.00014434,2]
[329974457,1718886650212,-500.0,0.00014434,2]
[329974458,1718886650222,-500.0,0.00014434,2]
[329974459,1718886650231,-500.0,0.00014434,2]
[329974460,1718886650240,-500.0,0.00014434,2]
[329974461,1718886650249,-500.0,0.00014434,2]
[329974462,1718886650259,-570.87,0.00014434,2]
[329974463,1718886650268,-500.0,0.00014434,2]
[329974464,1718886650277,-500.0,0.00014434,2]
[329974465,1718886650286,-895.96,0.00014444,2]
[329974466,1718886650296,-905.3,0.00014444,2]
[329974467,1718886650305,-500.0,0.00014444,2]
[329974468,1718886650314,-500.0,0.00014444,2]
[329974469,1718886650323,-12327.36,0.00014444,2]
[329974470,1718886650332,-660.99,0.00014444,2]
[329974471,1718886650341,-644.59,0.00014444,2]
[329974472,1718886650350,-1027.42,0.00014444,2]
[329974473,1718886650362,-963.83,0.00014444,2]
[329974474,1718886650371,-500.0,0.00014444,2]
[329974475,1718886650380,-2578.38,0.00014444,2]
[329974476,1718886650388,-500.0,0.00014444,2]
[329974477,1718886650397,-513.42,0.00014444,2]
[329974478,1718886650407,-707.91,0.00014444,2]
[329974479,1718886650417,-1949.91,0.00014444,2]
[329974480,1718886650426,-527.86,0.00014444,2]
[329974481,1718886650434,-691.69,0.00014444,2]
[329974482,1718886650443,-2637.71,0.00014444,2]
[329974483,1718886650453,-500.0,0.00014444,2]
[329974484,1718886650462,-1110.94,0.00014444,2]
[329974485,1718886650472,-500.0,0.00014444,2]
[329974486,1718886650482,-1610.25,0.00014444,2]
[329974487,1718886650492,-2000.9,0.00014444,2]
[329974488,1718886650501,-1148.37,0.00014444,2]
[329974489,1718886650511,-855.01,0.00014444,2]
[329974490,1718886650522,-500.0,0.00014444,2]
[329974491,1718886650532,-1040.45,0.00014444,2]
[329974492,1718886650541,-1291.08,0.00014444,2]
[329974493,1718886650551,-5440.7,0.00014444,2]
[329974494,1718886650560,-1976.86,0.00014444,2]
[329974495,1718886650570,-1750.6,0.00014444,2]
[329974496,1718886650579,-1744.86,0.00014444,2]
[329974497,1718886650588,-1929.94,0.00014444,2]
[329974498,1718886650597,-4747.42,0.00014444,2]
[329974499,1718886650610,-500.0,0.00014444,2]
[329974500,1718886650619,-2457.82,0.00014444,2]
[329974501,1718886650629,-894.13,0.00014444,2]
[329974502,1718886650638,-1268.24,0.00014444,2]
[329974503,1718886650647,-1655.61,0.00014444,2]
[329974504,1718886650657,-2591.47,0.00014444,2]
[329974505,1718886650667,-1132.39,0.00014444,2]
[329974506,1718886650676,-2850.77,0.00014444,2]
[329974507,1718886650687,-568.53,0.00014444,2]
[329974508,1718886650696,-1220.0,0.00014444,2]
[329974509,1718886650705,-500.0,0.00014444,2]
[329974510,1718886650715,-4713.65,0.00014444,2]
[329974511,1718886650724,-500.0,0.00014444,2]
[329974512,1718886650734,-1672.98,0.00014444,2]
[329974513,1718886650744,-500.0,0.00014444,2]
[329974514,1718886650754,-2020.61,0.00014444,2]
[329974515,1718886650764,-750.2,0.00014445,2]
[329974516,1718886650773,-500.0,0.00014445,2]
[329974517,1718886650783,-500.0,0.00014445,2]
[329974518,1718886650792,-1266.15,0.00014445,2]
[329974519,1718886650802,-500.0,0.00014445,2]
[329974520,1718886650811,-500.0,0.00014445,2]
[329974521,1718886650821,-500.0,0.00014445,2]
[329974522,1718886650831,-500.0,0.00014445,2]
[329974523,1718886650841,-500.0,0.00014445,2]
[329974524,1718886650851,-500.0,0.00014445,2]
[329974525,1718886650863,-500.0,0.00014445,2]
[329974526,1718886650872,-500.0,0.00014445,2]
[329974527,1718886650881,-500.0,0.00014445,2]
[329974528,1718886650890,-500.0,0.00014445,2]
[329974529,1718886650899,-500.0,0.00014445,2]
[329974530,1718886650910,-500.0,0.00014445,2]
[329974531,1718886650919,-500.0,0.00014445,2]
[329974532,1718886650927,-500.0,0.00014445,2]
[329974533,1718886650936,-500.0,0.00014445,2]
[329974534,1718886650945,-500.0,0.00014445,2]
[329974535,1718886650954,-291.91403948,0.00014445,2]
[329974536,1718886650963,-500.0,0.00014445,2]
[329974537,1718886650973,-500.0,0.00014445,2]
[329974538,1718886650981,-150.0,0.00014445,2]
[329974539,1718886650991,-500.0,0.00014445,2]
[329974540,1718886651000,-500.0,0.00014445,2]
[329974541,1718886651009,-500.0,0.00014445,2]
[329974542,1718886651018,-429.63910624,0.00014445,2]
[329974543,1718886651029,-500.0,0.00014445,2]
[329974544,1718886651043,-500.0,0.00014445,2]
[329974545,1718886651053,-500.0,0.00014445,2]
[329974546,1718886651062,-500.0,0.00014445,2]
[329974547,1718886651071,-500.0,0.00014445,2]
[329974548,1718886651082,-500.0,0.00014445,2]
[329974549,1718886651091,-500.0,0.00014445,2]
[329974550,1718886651100,-781.63,0.00014445,2]
[329974551,1718886651116,-500.0,0.00014445,2]
[329974552,1718886651127,-505.93,0.00014445,2]
[329974553,1718886651136,-500.0,0.00014445,2]
[329974554,1718886651145,-650.98,0.00014445,2]
[329974555,1718886651155,-500.0,0.00014445,2]
[329974556,1718886651164,-591.34,0.00014445,2]
[329974557,1718886651173,-537.98,0.00014445,2]
[329974558,1718886651182,-514.96,0.00014445,2]
[329974559,1718886651296,-500.0,0.00014445,2]
[329974560,1718886651306,-500.0,0.00014445,2]
[329974561,1718886651316,-500.0,0.00014445,2]
[329974562,1718886651326,-500.0,0.00014445,2]
[329974563,1718886651336,-500.0,0.00014445,2]
[329974564,1718886651345,-574.86,0.00014445,2]
[329974565,1718886651358,-500.0,0.00014445,2]
[329974566,1718886651368,-500.0,0.00014445,2]
[329974567,1718886651377,-500.0,0.00014445,2]
[329974568,1718886651387,-602.46596236,0.00014445,2]
[329974569,1718886651396,-564.71,0.00014445,2]
[329974570,1718886651405,-609.27,0.00014445,2]
[329974571,1718886651414,-5204.48,0.00014445,2]
[329974572,1718886651423,-500.0,0.00014445,2]
[329974573,1718886651433,-542.76,0.00014445,2]
[329974574,1718886651442,-15841.39,0.00014445,2]
[329974575,1718886651452,-500.0,0.00014445,2]
[329974576,1718886651462,-500.0,0.00014445,2]
[329974577,1718886651471,-500.0,0.00014445,2]
[329974578,1718886651481,-500.0,0.00014445,2]
[329974579,1718886651490,-500.0,0.00014445,2]
[329974580,1718886651499,-1221.12,0.00014445,2]
[329974581,1718886651509,-500.0,0.00014445,2]
[329974582,1718886651518,-500.0,0.00014445,2]
[329974583,1718886651528,-982.55,0.00014445,2]
[329974584,1718886651537,-4728.41,0.00014445,2]
[329974585,1718886651547,-500.0,0.00014445,2]
[329974586,1718886651556,-500.0,0.00014445,2]
[329974587,1718886651566,-500.0,0.00014445,2]
[329974588,1718886651575,-1943.02,0.00014445,2]
[329974589,1718886651585,-500.0,0.00014445,2]
[329974590,1718886651594,-500.0,0.00014445,2]
[329974591,1718886651604,-1817.72,0.00014445,2]
[329974592,1718886651614,-918.3,0.00014445,2]
[329974593,1718886651623,-808.56,0.00014445,2]
[329974594,1718886651632,-500.0,0.00014445,2]
[329974595,1718886651642,-500.0,0.00014445,2]
[329974596,1718886651651,-500.0,0.00014445,2]
[329974597,1718886651661,-1450.35,0.00014445,2]
[329974598,1718886651670,-2473.6,0.00014445,2]
[329974599,1718886651679,-500.0,0.00014445,2]
[329974600,1718886651689,-500.0,0.00014445,2]
[329974601,1718886651698,-1746.46,0.00014445,2]
[329974602,1718886651708,-500.0,0.00014445,2]
[329974603,1718886651719,-2222.84,0.00014445,2]
[329974604,1718886651730,-3410.12,0.00014445,2]
[329974605,1718886651739,-500.0,0.00014445,2]
[329974606,1718886651749,-790.49,0.00014445,2]
[329974607,1718886651758,-1340.4,0.00014445,2]
[329974608,1718886651768,-578.47,0.00014445,2]
[329974609,1718886651778,-500.0,0.00014445,2]
[329974610,1718886651788,-1214.53,0.00014445,2]
[329974611,1718886651797,-874.87,0.00014445,2]
[329974612,1718886651806,-1450.47,0.00014445,2]
[329974613,1718886651816,-500.0,0.00014445,2]
[329974614,1718886651826,-500.0,0.00014445,2]
[329974615,1718886651835,-500.0,0.00014445,2]
[329974616,1718886651845,-500.0,0.00014445,2]
[329974617,1718886651857,-573.05650426,0.00014445,2]
[329974618,1718886651866,-1469.92,0.00014445,2]
[329974619,1718886651876,-978.76,0.00014445,2]
[329974620,1718886651886,-472.88134386,0.00014445,2]
[329974621,1718886651895,-1232.27,0.00014445,2]
[329974622,1718886651904,-500.0,0.00014445,2]
[329974623,1718886651914,-638.71050084,0.00014445,2]
[329974624,1718886651924,-1729.68,0.00014445,2]
[329974625,1718886651933,-2128.12,0.00014445,2]
[329974626,1718886651943,-500.0,0.00014445,2]
[329974627,1718886651952,-500.0,0.00014445,2]
[329974628,1718886651962,-500.0,0.00014445,2]
[329974629,1718886651971,-2981.47,0.00014445,2]
[329974630,1718886651981,-1304.88,0.00014445,2]
[329974631,1718886651990,-500.0,0.00014445,2]
[329974632,1718886652000,-1263.17,0.00014445,2]
[329974633,1718886652009,-839.04,0.00014445,2]
[329974634,1718886652019,-15297.43971402,0.00014445,2]
[329974635,1718886652034,-772.8,0.00014446,2]
[329974636,1718886652043,-774.02,0.00014446,2]
[329974637,1718886652053,-736.62,0.00014446,2]
[329974638,1718886652063,-1004.45,0.00014446,2]
[329974639,1718886652074,-910.9,0.00014446,2]
[329974640,1718886652084,-1497.6,0.00014446,2]
[329974641,1718886652094,-7591.76,0.00014446,2]
[329974642,1718886652107,-533.98,0.00014446,2]
[329974643,1718886652117,-10359.81,0.00014446,2]
[329974644,1718886652127,-749.92,0.00014446,2]
[329974645,1718886652137,-693.63,0.00014446,2]
[329974646,1718886652147,-500.0,0.00014446,2]
[329974647,1718886652157,-151.36,0.00014466,2]
[329974648,1718886652166,-2000.0,0.000145,2]
[329974649,1718886652176,-500.0,0.00014515,2]
[329974650,1718886652185,-395.57863612,0.00014515,2]
[329974651,1718886652195,-500.0,0.00014515,2]
[329974652,1718886652204,-500.0,0.00014515,2]
[329974653,1718886652213,-500.0,0.00014515,2]
[329974654,1718886652223,-500.0,0.00014515,2]
[329974655,1718886652233,-1959.03,0.00014515,2]
[329974656,1718886652242,-4515.12,0.00014515,2]
[329974657,1718886652252,-725.08,0.00014515,2]
[329974658,1718886652261,-1083.71,0.00014515,2]
[329974659,1718886652271,-4412.5,0.00014515,2]
[329974660,1718886652280,-1037.43,0.00014515,2]
[329974661,1718886652289,-772.66,0.00014515,2]
[329974662,1718886652299,-942.01,0.00014515,2]
[329974663,1718886652309,-500.0,0.00014515,2]
[329974664,1718886652319,-352.661351,0.00014515,2]
[329974665,1718886652329,-352.661351,0.00014515,2]
[329974666,1718886652339,-882.82,0.00014515,2]
[329974667,1718886652348,-1632.12,0.00014515,2]
[329974668,1718886652360,-2296.73,0.00014515,2]
[329974669,1718886652369,-1059.54,0.00014515,2]
[329974670,1718886652378,-1792.52,0.00014515,2]
[329974671,1718886652387,-877.652126,0.00014515,2]
[329974672,1718886652396,-877.652126,0.00014515,2]
[329974673,1718886652405,-2594.9,0.00014515,2]
[329974674,1718886652415,-7206.65,0.00014515,2]
[329974675,1718886652425,-151.0,0.00014515,2]